bitfinex/quotes_SOLUSD_20260109
["timestamp","ask_amount","ask_price","bid_price","bid_amount"]
[1767952316915,2.24041627,138.6,138.54,0.6719021]
[1767952317094,2.24041627,138.6,138.49,26.04151457]
[1767952317095,2.24041627,138.55,138.53,0.6719021]
[1767952318013,2.24041627,138.6,138.54,0.6719021]
[1767952318014,2.24041627,138.58,138.54,0.6719021]
[1767952318994,2.24041627,138.58,138.55,0.6719021]
[1767952320300,2.24041627,138.58,138.55,7.88945707]
[1767952320807,2.24041627,138.58,138.56,0.6719021]
[1767952322318,20.37525743,138.6,138.56,0.6719021]
[1767952322319,2.24041627,138.59,138.56,0.6719021]
[1767952322523,2.24041627,138.6,138.57,0.6719021]
[1767952323517,2.24041627,138.59,138.57,0.6719021]
[1767952325015,2.24041627,138.59,138.56,7.92657305]
[1767952326113,2.24041627,138.6,138.57,7.21654239]
[1767952326300,2.24041627,138.6,138.56,0.70962116]
[1767952327015,2.24041627,138.6,138.56,7.92649805]
[1767952327720,7.21406629,138.62,138.57,0.70962116]
[1767952327904,2.24041627,138.61,138.57,0.70962116]
[1767952328104,2.24041627,138.6,138.57,0.70962116]
[1767952329322,2.24041627,138.6,138.57,7.92594025]
[1767952330107,2.24041627,138.6,138.58,0.70962116]
[1767952330604,2.24041627,138.6,138.58,7.92565689]
[1767952330806,2.24041627,138.6,138.59,0.70962116]
[1767952331426,2.24041627,138.6,138.58,7.92565689]
[1767952334529,3.50243242,138.6,138.58,7.92565689]
[1767952335216,3.50243242,138.6,138.59,0.70962116]
[1767952335528,3.50243242,138.6,138.55,0.70962116]
[1767952335740,3.50243242,138.58,138.57,0.70962116]
[1767952336024,3.50243242,138.58,138.56,7.21672344]
[1767952336631,3.50243242,138.58,138.54,18.0447075]
[1767952337813,3.65441164,138.58,138.54,18.0447075]
[1767952338015,3.50243242,138.58,138.55,7.92683028]
[1767952339232,3.50243242,138.58,138.56,0.70962116]
[1767952341536,3.50243242,138.58,138.57,0.70962116]
[1767952343226,3.50243242,138.58,138.56,7.92661422]
[1767952343628,13.16,138.59,138.56,7.92661422]
[1767952343827,3.50243242,138.58,138.56,7.92661422]
[1767952345342,3.50243242,138.58,138.56,0.70962116]
[1767952347542,13.30688702,138.59,138.56,0.70962116]
[1767952347746,3.50243242,138.58,138.56,0.70962116]
[1767952348122,16.66243242,138.59,138.57,0.70962116]
[1767952350337,16.68243242,138.59,138.57,0.70962116]
[1767952350949,13.18,138.59,138.57,0.70962116]
[1767952351242,16.68243242,138.59,138.57,0.70962116]
[1767952352242,3.50243242,138.59,138.57,0.70962116]
[1767952352446,16.68243242,138.59,138.57,0.70962116]
[1767952353542,3.50243242,138.58,138.56,0.70530327]
[1767952354544,16.82931944,138.59,138.56,0.70530327]
[1767952355050,3.50243242,138.58,138.56,0.70530327]
[1767952356741,3.50243242,138.58,138.56,7.92238946]
[1767952357646,16.82931944,138.59,138.56,7.92238946]
[1767952361635,13.18,138.59,138.57,0.70530327]
[1767952361834,3.50243242,138.62,138.56,10.71951861]
[1767952361835,13.84941604,138.62,138.56,10.71951861]
[1767952362030,4.17184846,138.61,138.56,10.71951861]
[1767952362235,3.50243242,138.64,138.6,0.70530327]
[1767952362428,4.17184846,138.64,138.6,0.70530327]
[1767952362655,0.66941604,138.63,138.6,0.70530327]
[1767952363633,0.66941604,138.63,138.6,7.91994292]
[1767952365722,4.17184846,138.63,138.6,7.91994292]
[1767952367240,0.66941604,138.63,138.61,0.6836043]
[1767952367554,0.63941605,138.63,138.61,0.6836043]
[1767952368140,0.63941605,138.63,138.6,7.89824395]
[1767952368752,4.14184847,138.63,138.6,7.89824395]
[1767952372756,0.63941605,138.63,138.6,7.89824395]
[1767952373144,0.60941606,138.63,138.6,7.89824395]
[1767952374848,7.2121362,138.66,138.6,7.89824395]
[1767952374849,0.2,138.67,138.62,0.6836043]
[1767952375051,4.35562091,138.67,138.63,0.6836043]
[1767952375350,0.65318849,138.66,138.63,4.18603672]
[1767952375754,0.65318849,138.66,138.63,0.6836043]
[1767952377167,0.85318849,138.67,138.64,0.6836043]
[1767952377851,4.35562091,138.67,138.64,0.6836043]
[1767952379352,4.35562091,138.67,138.65,0.6836043]
[1767952379754,0.2,138.67,138.65,0.6836043]
[1767952380060,0.65318849,138.69,138.66,0.6836043]
[1767952380359,0.65318849,138.68,138.66,0.6836043]
[1767952380660,0.65318849,138.68,138.65,0.6836043]
[1767952381242,0.65318849,138.68,138.64,25.24508859]
[1767952381551,0.65318849,138.67,138.64,25.24508859]
[1767952381856,0.16656175,138.65,138.63,13.16]
[1767952382161,3.50243242,138.65,138.63,13.16]
[1767952382755,3.50243242,138.65,138.62,7.89729122]
[1767952383138,3.50243242,138.64,138.61,7.87106561]
[1767952383338,3.50243242,138.63,138.6,21.03182379]
[1767952383542,7.21188518,138.66,138.6,21.03182379]
[1767952383744,3.50243242,138.63,138.6,21.03182379]
[1767952384950,4.16308401,138.64,138.6,21.03182379]
[1767952386756,4.13308402,138.64,138.6,21.03182379]
[1767952386960,0.6306516,138.64,138.6,7.87182379]
[1767952387264,4.13308402,138.64,138.6,7.87182379]
[1767952387465,3.50243242,138.65,138.61,0.65701471]
[1767952388780,0.66065159,138.65,138.61,7.87107528]
[1767952389070,4.16308401,138.65,138.61,7.87107528]
[1767952391673,0.66065159,138.64,138.61,7.87107528]
[1767952393466,4.16308401,138.64,138.61,7.87107528]
[1767952393773,0.66065159,138.64,138.61,7.87107528]
[1767952393954,4.16308401,138.64,138.61,7.87107528]
[1767952395266,0.66065159,138.63,138.61,7.87107528]
[1767952395758,0.66065159,138.63,138.6,25.90953995]
[1767952395958,4.16308401,138.64,138.61,0.65701471]
[1767952396163,0.66065159,138.64,138.61,0.65701471]
[1767952396875,0.66065159,138.64,138.61,7.87110748]
[1767952403780,110.5,138.65,138.62,0.65701471]
[1767952404185,110.5,138.65,138.63,0.65701471]
[1767952404383,9.25787382,138.65,138.64,0.65701471]
[1767952404589,0.66065159,138.66,138.64,0.65701471]
[1767952406095,0.66065159,138.67,138.64,7.86961358]
[1767952406293,0.66065159,138.67,138.64,7.21259887]
[1767952406799,2.90086653,138.67,138.64,7.21259887]
[1767952408587,0.66065159,138.7,138.67,0.1353788]
[1767952408769,0.66065159,138.68,138.64,22.74819261]
[1767952409774,0.66065159,138.68,138.65,0.1353788]
[1767952410173,2.90086653,138.68,138.65,0.1353788]
[1767952410374,2.90086653,138.68,138.64,31.1923139]
[1767952410375,0.66065159,138.67,138.64,31.1923139]
[1767952410689,0.66065159,138.67,138.64,31.3276927]
[1767952411293,0.66065159,138.67,138.64,38.54061826]
[1767952412694,0.70499822,138.7,138.64,40.7808332]
[1767952412989,7.20949745,138.71,138.64,40.7808332]
[1767952412990,0.70499822,138.68,138.64,40.7808332]
[1767952413781,0.70499822,138.68,138.64,27.6208332]
[1767952414082,0.70499822,138.68,138.64,40.7808332]
[1767952415076,0.70499822,138.68,138.64,38.54061826]
[1767952415376,0.70499822,138.68,138.64,40.7808332]
[1767952416782,0.70499822,138.67,138.64,38.40523946]
[1767952417171,0.70499822,138.67,138.64,25.24523946]
[1767952417373,0.70499822,138.67,138.64,38.40523946]
[1767952418277,0.70499822,138.67,138.64,40.6454544]
[1767952418478,0.70499822,138.67,138.64,40.7808332]
[1767952418679,0.70499822,138.69,138.66,7.34726398]
[1767952419180,0.70499822,138.69,138.66,7.21188518]
[1767952419994,0.60499822,138.66,138.6,1.00255229]
[1767952420195,0.60499822,138.66,138.54,98.07160391]
[1767952420196,2.84015317,138.64,138.61,0.71822915]
[1767952420390,2.24021494,138.64,138.6,0.71822915]
[1767952420597,2.33921494,138.65,138.61,0.71822915]
[1767952420894,0.099,138.65,138.61,0.71822915]
[1767952421098,2.24021494,138.65,138.62,7.93188239]
[1767952421483,2.24021494,138.66,138.63,0.71822915]
[1767952421686,2.33921494,138.66,138.63,0.71822915]
[1767952422281,2.33921494,138.66,138.62,7.93188239]
[1767952423297,2.84015317,138.65,138.62,7.93188239]
[1767952424401,2.24021494,138.64,138.62,7.93188239]
[1767952425005,0.59993823,138.65,138.62,7.93188239]
[1767952425209,0.60499822,138.67,138.63,0.71822915]
[1767952425405,2.33921494,138.66,138.63,0.71822915]
[1767952426205,2.33921494,138.66,138.62,39.12679798]
[1767952426597,2.33921494,138.66,138.62,21.09188239]
[1767952428305,2.24021494,138.65,138.62,21.09188239]
[1767952428809,2.84015317,138.65,138.62,13.87822915]
[1767952429114,2.84015317,138.65,138.61,7.90527234]
[1767952429115,2.24021494,138.64,138.61,7.90527234]
[1767952429414,2.34422433,138.64,138.61,7.90527234]
[1767952430405,2.24021494,138.63,138.61,7.90527234]
[1767952430904,2.34422433,138.64,138.61,7.90527234]
[1767952436911,0.10400939,138.64,138.61,7.90527234]
[1767952438621,2.84521316,138.65,138.61,7.90527234]
[1767952439423,2.84521316,138.65,138.62,0.69097955]
[1767952440715,0.099,138.64,138.61,7.90527234]
[1767952449929,2.33921494,138.64,138.61,7.90527234]
[1767952456333,0.099,138.64,138.61,7.90527234]
[1767952459634,0.099,138.64,138.62,7.88099381]
[1767952459834,3.50054123,138.66,138.63,0.66708468]
[1767952460140,3.60455062,138.66,138.63,0.66708468]
[1767952460633,11.60455062,138.66,138.63,0.66708468]
[1767952461839,0.59011834,138.63,138.6,13.82708468]
[1767952462038,0.56011835,138.63,138.6,13.82708468]
[1767952462524,3.50054123,138.64,138.61,0.66708468]
[1767952462925,3.50054123,138.64,138.61,7.88156884]
[1767952463330,3.50054123,138.65,138.61,0.66708468]
[1767952464124,4.07553946,138.65,138.61,0.66708468]
[1767952465459,12.07553946,138.65,138.61,0.66708468]
[1767952466836,0.099,138.64,138.61,0.66708468]
[1767952467337,12.07553946,138.65,138.62,0.66708468]
[1767952467541,8.57499823,138.65,138.62,0.66708468]
[1767952468246,0.099,138.64,138.61,7.21446349]
[1767952468444,0.099,138.64,138.61,7.88154817]
[1767952471349,0.57499823,138.65,138.62,0.66708468]
[1767952472431,4.07553946,138.66,138.62,7.88065522]
[1767952473754,4.07553946,138.66,138.6,31.1970081]
[1767952473755,4.07553946,138.66,138.63,0.65820456]
[1767952475655,3.50054123,138.65,138.63,0.65820456]
[1767952477666,3.50054123,138.64,138.62,0.65820456]
[1767952494060,3.59954123,138.65,138.62,0.65820456]
[1767952494861,0.57023824,138.64,138.6,13.16]
[1767952495069,4.07077947,138.64,138.61,0.66213205]
[1767952495565,3.50054123,138.63,138.61,0.66213205]
[1767952498681,3.60425362,138.63,138.6,21.03692301]
[1767952499587,3.60425362,138.63,138.61,0.66213205]
[1767952500281,3.50054123,138.63,138.61,0.66213205]
[1767952502065,0.10371239,138.61,138.58,0.66213205]
[1767952502280,3.50054123,138.6,138.58,0.66213205]
[1767952503275,3.57425363,138.61,138.58,7.87806037]
[1767952504783,3.50054123,138.6,138.58,0.66213205]
[1767952508289,4.04553947,138.6,138.58,0.66213205]
[1767952508479,0.099,138.59,138.56,21.03483561]
[1767952508785,3.50054123,138.58,138.56,21.03483561]
[1767952509093,3.47054124,138.58,138.56,21.03483561]
[1767952510294,3.59954123,138.59,138.56,21.03483561]
[1767952510484,3.59954123,138.59,138.56,13.81798104]
[1767952510690,4.04107948,138.58,138.56,13.81798104]
[1767952510881,4.04107948,138.58,138.55,0.65798104]
[1767952511889,4.04107948,138.58,138.55,7.87550968]
[1767952512285,3.50054123,138.58,138.56,0.65798104]
[1767952512877,3.59954123,138.58,138.55,7.87550968]
[1767952513595,3.50054123,138.58,138.56,0.65798104]
[1767952514398,3.59954123,138.58,138.56,0.65798104]
[1767952514573,3.59954123,138.58,138.55,7.87550968]
[1767952516976,3.59954123,138.58,138.56,0.65798104]
[1767952517178,3.50054123,138.58,138.56,0.65798104]
[1767952518291,4.04553947,138.6,138.57,0.65798104]
[1767952518588,2.78679965,138.6,138.57,0.65798104]
[1767952518897,6.9,138.59,138.57,0.65798104]
[1767952520398,9.14180141,138.59,138.57,0.65798104]
[1767952523494,9.24080141,138.59,138.56,0.65798104]
[1767952524183,2.24180141,138.58,138.55,0.65798104]
[1767952526196,2.24180141,138.58,138.56,0.65798104]
[1767952532188,2.24180141,138.58,138.54,20.37790333]
[1767952532189,7.31534419,138.58,138.53,0.65798104]
[1767952532395,2.24180141,138.54,138.52,0.65798104]
[1767952532600,7.31534419,138.58,138.51,13.18]
[1767952532601,2.24180141,138.53,138.51,13.18]
[1767952533410,2.24180141,138.54,138.51,13.18]
[1767952533816,2.96215811,138.54,138.51,13.18]
[1767952534017,0.7203567,138.54,138.51,20.39952787]
[1767952534322,25.25646541,138.58,138.52,7.2190868]
[1767952534323,2.24180141,138.55,138.52,7.2190868]
[1767952534524,2.81859776,138.55,138.51,20.39958088]
[1767952534702,2.81859776,138.55,138.52,0.69512584]
[1767952535923,2.24180141,138.54,138.52,0.69512584]
[1767952536914,2.24180141,138.53,138.51,13.87512584]
[1767952537334,2.96215811,138.54,138.51,13.87512584]
[1767952537820,18.04221713,138.57,138.52,0.69512584]
[1767952537821,7.93799849,138.55,138.52,0.69512584]
[1767952538003,2.24180141,138.54,138.52,0.69512584]
[1767952538621,2.24180141,138.53,138.51,13.87512584]
[1767952538804,2.24180141,138.53,138.52,0.69512584]
[1767952539512,2.24180141,138.54,138.52,0.69512584]
[1767952539716,2.96215811,138.53,138.49,7.32058685]
[1767952539920,0.7203567,138.53,138.49,7.32058685]
[1767952540117,2.96215811,138.53,138.49,7.32058685]
[1767952540426,2.24180141,138.53,138.49,7.32058685]
[1767952541826,2.96215811,138.54,138.5,0.69512584]
[1767952542023,2.96215811,138.54,138.5,7.91511113]
[1767952542217,2.96215811,138.54,138.51,0.69512584]
[1767952543428,0.7203567,138.53,138.5,0.69512584]
[1767952544005,2.96215811,138.53,138.5,0.69512584]
[1767952544924,0.7203567,138.53,138.5,0.69512584]
[1767952545126,2.96215811,138.53,138.5,0.69512584]
[1767952548534,0.7123734,138.55,138.51,0.66463902]
[1767952550436,0.7123734,138.55,138.51,7.88383627]
[1767952550740,0.7123734,138.55,138.52,0.66463902]
[1767952553524,0.7123734,138.55,138.52,7.88378661]
[1767952554634,2.95417481,138.55,138.52,7.88378661]
[1767952555737,0.7123734,138.54,138.52,7.88378661]
[1767952557042,2.95417481,138.54,138.51,0.66463902]
[1767952558339,2.95417481,138.54,138.51,7.88406216]
[1767952558515,0.7123734,138.53,138.5,7.88463804]
[1767952558717,2.95417481,138.52,138.49,7.98514347]
[1767952558926,0.7123734,138.51,138.49,0.1]
[1767952559125,0.68237341,138.51,138.49,0.1]
[1767952559323,0.68237341,138.51,138.49,0.76463902]
[1767952559722,2.24180141,138.52,138.49,7.98531319]
[1767952560341,25.26033285,138.56,138.49,7.98531319]
[1767952560642,2.24180141,138.52,138.49,0.1]
[1767952561019,0.7123734,138.51,138.49,0.1]
[1767952561326,0.7123734,138.5,138.49,0.1]
[1767952561734,2.95417481,138.5,138.49,0.1]
[1767952561934,0.7123734,138.49,138.47,0.1]
[1767952562236,2.24180142,138.49,138.47,0.1]
[1767952562414,2.24180141,138.49,138.47,0.1]
[1767952562725,0.26332072,138.49,138.47,0.1]
[1767952563136,2.24180141,138.48,138.47,0.1]
[1767952563931,2.24180141,138.48,138.46,0.1]
[1767952564322,2.9470272,138.48,138.46,0.1]
[1767952570445,2.24180141,138.48,138.46,0.81590978]
[1767952570629,2.9470272,138.49,138.46,0.81590978]
[1767952571030,2.78680229,138.48,138.46,0.81590978]
[1767952571331,0.70362354,138.47,138.46,0.1]
[1767952571538,0.5465871,138.46,138.45,0.1]
[1767952572036,0.54500088,138.46,138.45,0.1]
[1767952572540,2.9470272,138.47,138.45,0.1]
[1767952573350,0.70522579,138.47,138.45,0.1]
[1767952573747,7.22091808,138.49,138.44,0.1]
[1767952573748,7.22073795,138.49,138.44,0.1]
[1767952574247,0.70522579,138.46,138.44,0.81590978]
[1767952574449,0.70522579,138.46,138.44,0.1]
[1767952575350,0.70522579,138.46,138.44,0.81590978]
[1767952576046,2.9470272,138.47,138.44,0.81590978]
[1767952577046,0.70522579,138.47,138.44,0.81590978]
[1767952577953,2.68780229,138.46,138.44,0.1]
[1767952578640,3.95567109,138.46,138.44,0.1]
[1767952580240,0.70263354,138.45,138.44,0.1]
[1767952581141,3.50967021,138.46,138.44,0.81590978]
[1767952581753,3.95567109,138.46,138.44,0.81590978]
[1767952581949,0.44600088,138.46,138.44,0.81590978]
[1767952583142,0.70263354,138.45,138.44,0.1]
[1767952583350,4.21230375,138.45,138.44,0.1]
[1767952583945,0.3495672,138.44,138.4,7.22529849]
[1767952584251,3.50967021,138.44,138.4,7.22529849]
[1767952584556,3.50967021,138.44,138.4,0.71590978]
[1767952584867,3.50967021,138.43,138.4,0.71590978]
[1767952588350,4.214896,138.44,138.4,7.94127646]
[1767952590744,4.214896,138.46,138.42,0.71590978]
[1767952591440,6.4,138.45,138.42,0.71590978]
[1767952592263,9.90967021,138.45,138.42,0.71590978]
[1767952592449,9.90967021,138.45,138.42,7.82529614]
[1767952593541,10.2418211,138.45,138.42,7.82529614]
[1767952598263,6.4,138.45,138.44,0.66394493]
[1767952598952,4.23211954,138.47,138.44,0.66394493]
[1767952599553,3.50967021,138.46,138.44,0.66394493]
[1767952599874,3.82476979,138.46,138.43,0.66394493]
[1767952600670,3.50967021,138.46,138.43,0.66394493]
[1767952601672,3.82476979,138.46,138.43,0.66394493]
[1767952601970,3.50967021,138.46,138.43,0.66394493]
[1767952602159,3.50967021,138.46,138.43,7.8876123]
[1767952602352,4.23211954,138.47,138.44,0.66394493]
[1767952603667,0.31509958,138.46,138.43,7.8876123]
[1767952603861,3.82476979,138.46,138.43,7.8876123]
[1767952604759,4.22804604,138.45,138.42,7.8880769]
[1767952609159,3.82880256,138.44,138.42,7.22413197]
[1767952609565,3.50967021,138.44,138.42,7.94274139]
[1767952614973,3.50967021,138.44,138.39,35.00788737]
[1767952614974,3.88709128,138.44,138.41,7.94333925]
[1767952619580,0.5,138.45,138.42,0.71860942]
[1767952619896,1.15667756,138.45,138.42,4.22827963]
[1767952620082,0.5,138.45,138.43,0.71860942]
[1767952620482,0.65949833,138.46,138.43,0.71860942]
[1767952621589,103.75949833,138.49,138.45,0.71860942]
[1767952621773,0.65949833,138.49,138.46,0.71860942]
[1767952622180,4.05949833,138.49,138.46,0.71860942]
[1767952622485,109.13595085,138.53,138.48,0.71860942]
[1767952622486,0.65949833,138.53,138.48,0.71860942]
[1767952622673,0.65949833,138.53,138.48,4.22827963]
[1767952622674,0.37742107,138.52,138.48,4.22827963]
[1767952622867,0.37742107,138.52,138.48,0.71860942]
[1767952623272,0.70234303,138.53,138.49,4.20273416]
[1767952623474,0.70234303,138.53,138.5,0.69306395]
[1767952623670,0.70234303,138.53,138.5,7.91288362]
[1767952623874,4.20473958,138.51,138.48,0.69306395]
[1767952624075,4.20473958,138.51,138.48,7.91403247]
[1767952624677,0.69506937,138.51,138.48,7.91403247]
[1767952625188,4.21201324,138.52,138.49,7.22061429]
[1767952626085,0.33500482,138.51,138.46,0.69306395]
[1767952626293,3.84467503,138.51,138.47,0.69306395]
[1767952626678,3.84467503,138.51,138.48,7.22124886]
[1767952628475,3.50967021,138.51,138.48,7.91431281]
[1767952630394,0.099,138.52,138.49,0.69306395]
[1767952630595,3.50967021,138.51,138.49,0.69306395]
[1767952638496,3.50967021,138.5,138.48,0.69306395]
[1767952638674,2.2449265,138.5,138.48,0.69306395]
[1767952639286,2.2449265,138.49,138.46,0.69306395]
[1767952640394,2.2449265,138.49,138.47,0.69306395]
[1767952641097,2.34527294,138.5,138.47,0.69306395]
[1767952643201,2.2449265,138.5,138.47,0.69306395]
[1767952645301,2.3439265,138.5,138.47,0.69306395]
[1767952647005,0.099,138.5,138.47,7.91482485]
[1767952651302,2.47993132,138.51,138.48,0.69306395]
[1767952651498,2.2449265,138.49,138.43,0.69306395]
[1767952651707,2.2449265,138.48,138.43,0.69306395]
[1767952652006,15.65993132,138.49,138.45,0.69306395]
[1767952652600,13.41500482,138.49,138.46,0.70324013]
[1767952653308,0.23500482,138.49,138.46,0.70324013]
[1767952654323,2.47993132,138.49,138.46,0.70324013]
[1767952657187,0.23500482,138.49,138.46,0.70324013]
[1767952657392,2.47993132,138.5,138.47,0.70324013]
[1767952658003,0.10034644,138.47,138.44,0.70324013]
[1767952658208,2.34527294,138.47,138.44,7.92629601]
[1767952658394,2.2449265,138.47,138.45,0.70324013]
[1767952659400,2.2449265,138.48,138.45,0.70324013]
[1767952659999,0.23500482,138.49,138.45,0.70324013]
[1767952660201,2.2449265,138.48,138.45,7.92602837]
[1767952662704,2.2449265,138.48,138.46,0.70324013]
[1767952666518,2.2449265,138.48,138.45,7.92602837]
[1767952666710,2.2449265,138.48,138.46,0.70324013]
[1767952676628,0.23364477,138.47,138.45,0.67117132]
[1767952677426,0.23364477,138.47,138.44,7.89451594]
[1767952677617,0.23364477,138.47,138.45,0.67117132]
[1767952678222,2.2449265,138.47,138.45,0.67117132]
[1767952678414,2.2449265,138.48,138.45,0.67117132]
[1767952680115,2.2449265,138.47,138.45,0.67117132]
[1767952680316,2.47857127,138.47,138.44,7.89451594]
[1767952680515,2.47857127,138.47,138.44,0.67117132]
[1767952681115,2.2449265,138.47,138.44,0.67117132]
[1767952681316,2.47993132,138.48,138.45,0.67117132]
[1767952682728,2.3439265,138.47,138.43,7.91016742]
[1767952682936,2.47993132,138.48,138.44,0.68629977]
[1767952685136,2.47993132,138.48,138.44,7.90963886]
[1767952685840,2.47993132,138.48,138.45,0.68629977]
[1767952686210,0.099,138.47,138.44,7.90963886]
[1767952686413,2.3439265,138.47,138.44,7.90963886]
[1767952686630,0.099,138.47,138.44,7.90963886]
[1767952687617,2.3439265,138.47,138.44,0.68629977]
[1767952687934,2.3439265,138.47,138.43,7.90994322]
[1767952688114,2.3439265,138.47,138.44,7.2233251]
[1767952688316,0.099,138.47,138.44,7.2233251]
[1767952688514,2.3439265,138.47,138.44,7.2233251]
[1767952688736,2.3439265,138.47,138.44,7.90962487]
[1767952691644,13.18,138.48,138.42,0.68629977]
[1767952691937,15.4249265,138.48,138.43,0.68629977]
[1767952692317,2.2449265,138.47,138.43,0.68629977]
[1767952692736,20.40073795,138.49,138.43,0.68629977]
[1767952692946,2.2449265,138.47,138.43,0.68629977]
[1767952694638,9.46683211,138.47,138.43,0.68629977]
[1767952698637,10.73099559,138.47,138.43,0.68629977]
[1767952698842,7.22190561,138.47,138.43,0.68629977]
[1767952700344,10.73034936,138.48,138.42,11.41938642]
[1767952700645,3.50908998,138.47,138.42,7.91029644]
[1767952700842,3.50908998,138.47,138.42,11.41938642]
[1767952701643,10.73112948,138.47,138.42,11.41938642]
[1767952702334,10.73112948,138.47,138.43,0.68629977]
[1767952702536,3.50908998,138.46,138.43,0.68629977]
[1767952707351,3.50908998,138.47,138.43,0.68629977]
[1767952708956,10.73119346,138.47,138.43,0.68629977]
[1767952712458,3.50908998,138.46,138.43,0.68629977]
[1767952712633,3.47908999,138.46,138.43,0.68629977]
[1767952715261,10.70139471,138.46,138.43,0.68629977]
[1767952729974,7.22230472,138.46,138.43,0.68629977]
[1767952730274,10.7313947,138.46,138.43,0.68629977]
[1767952734782,3.50908998,138.46,138.43,0.68629977]
[1767952735479,3.50908998,138.47,138.43,0.68629977]
[1767952736888,7.22125938,138.48,138.44,0.71454041]
[1767952737071,10.73034936,138.48,138.44,0.71454041]
[1767952737260,3.50908998,138.47,138.44,0.71454041]
[1767952739563,10.73034936,138.48,138.44,0.71454041]
[1767952741385,3.50908998,138.47,138.44,0.71454041]
[1767952741783,7.22125938,138.48,138.44,0.71454041]
[1767952742084,3.50908998,138.47,138.44,0.71454041]
[1767952742387,7.22125938,138.48,138.44,0.71454041]
[1767952742388,10.73034936,138.48,138.44,0.71454041]
[1767952743386,3.50908998,138.47,138.44,0.71454041]
[1767952744386,3.50908998,138.46,138.44,0.71454041]
[1767952744585,3.50908998,138.45,138.44,0.71454041]
[1767952745890,3.50908998,138.46,138.44,0.71454041]
[1767952746779,3.50908998,138.46,138.43,0.70238057]
[1767952747177,3.50908998,138.44,138.41,0.70238057]
[1767952747395,3.50908998,138.43,138.41,0.70238057]
[1767952749401,7.22375519,138.44,138.41,0.70238057]
[1767952749574,3.50908998,138.43,138.41,0.70238057]
[1767952750576,10.73284517,138.44,138.41,0.70238057]
[1767952751295,7.22375519,138.44,138.41,0.70238057]
[1767952751697,10.73284517,138.44,138.41,0.70238057]
[1767952753099,10.7319141,138.45,138.41,0.70238057]
[1767952753795,7.22256773,138.46,138.41,0.70238057]
[1767952754094,23.91165771,138.46,138.42,0.70238057]
[1767952758498,22.64892492,138.46,138.42,0.70238057]
[1767952759204,2.1,138.45,138.42,0.70238057]
[1767952761388,4.34635719,138.45,138.42,0.70238057]
[1767952763002,2.1,138.45,138.42,0.70238057]
[1767952763183,4.34635719,138.45,138.42,0.70238057]
[1767952773922,2.1,138.45,138.42,0.70238057]
[1767952774217,4.34635719,138.45,138.42,0.70238057]
[1767952779318,2.1,138.45,138.43,0.67999632]
[1767952779511,2.1,138.45,138.42,7.90408323]
[1767952779713,2.1,138.45,138.43,0.67999632]
[1767952781204,0.67500447,138.46,138.43,0.67999632]
[1767952781401,0.67500447,138.46,138.43,7.90376714]
[1767952782226,2.92673365,138.47,138.44,0.67999632]
[1767952782525,0.68037646,138.47,138.44,0.67999632]
[1767952782698,2.92673365,138.47,138.44,0.67999632]
[1767952783799,2.24635719,138.46,138.44,0.67999632]
[1767952789204,2.24635719,138.47,138.45,0.6857497]
[1767952789712,2.4153688,138.47,138.44,0.6857497]
[1767952790619,0.6494285,138.46,138.42,7.22438953]
[1767952790918,2.42017297,138.45,138.42,7.91013923]
[1767952791122,2.90063839,138.46,138.43,0.6857497]
[1767952792027,0.6542812,138.46,138.43,0.6857497]
[1767952792320,2.90063839,138.46,138.43,0.6857497]
[1767952793729,0.6542812,138.46,138.43,7.90957036]
[1767952793915,2.90063839,138.46,138.43,7.90957036]
[1767952794924,2.90063839,138.45,138.41,0.6857497]
[1767952796027,2.90063839,138.45,138.42,0.6857497]
[1767952796321,0.6542812,138.45,138.42,0.6857497]
[1767952796531,2.90063839,138.45,138.42,0.6857497]
[1767952797824,2.4153688,138.44,138.42,0.6857497]
[1767952798015,2.38536881,138.44,138.42,0.6857497]
[1767952798623,7.22367618,138.44,138.39,0.254089]
[1767952798806,2.24635719,138.41,138.39,0.9398387]
[1767952799208,2.24635719,138.41,138.4,0.6857497]
[1767952799520,2.24635719,138.42,138.4,0.6857497]
[1767952800427,20.40367618,138.44,138.41,0.6857497]
[1767952801810,2.90063839,138.45,138.41,0.6857497]
[1767952801811,9.46931249,138.45,138.41,0.6857497]
[1767952802225,9.4699521,138.44,138.41,0.6857497]
[1767952803027,2.24635719,138.42,138.39,0.94578043]
[1767952803718,2.24635719,138.41,138.39,0.94578043]
[1767952805233,9.47153373,138.41,138.39,0.94578043]
[1767952806821,7.22517654,138.41,138.39,0.94578043]
[1767952807015,9.47153373,138.41,138.39,0.94578043]
[1767952807410,10.11561801,138.41,138.39,0.254089]
[1767952807616,9.47153373,138.41,138.39,0.94578043]
[1767952807925,9.57638634,138.41,138.39,0.254089]
[1767952808124,9.47153373,138.41,138.39,0.254089]
[1767952810438,9.57638634,138.41,138.39,0.254089]
[1767952811511,9.47153373,138.41,138.39,0.94578043]
[1767952811827,2.24635719,138.44,138.4,0.69169143]
[1767952812138,9.46993268,138.44,138.4,0.69169143]
[1767952812931,2.24635719,138.43,138.4,0.69169143]
[1767952813645,8.0284281,138.44,138.4,0.69169143]